bitfinex/quotes_BTCUSD_20250814
["timestamp","ask_amount","ask_price","bid_price","bid_amount"]
[1755148536543,0.13714841,122760.0,122750.0,0.15171397]
[1755148536723,0.07444311,122760.0,122750.0,0.28183397]
[1755148536923,0.07444311,122760.0,122750.0,0.15171397]
[1755148537174,0.07444311,122760.0,122750.0,0.28183397]
[1755148540800,0.07444311,122760.0,122750.0,0.15171397]
[1755148540972,0.07444311,122760.0,122750.0,0.28171397]
[1755148541361,0.13714841,122760.0,122750.0,0.28171397]
[1755148542698,0.07444311,122760.0,122750.0,0.15171397]
[1755148542899,0.07444311,122760.0,122750.0,0.28155397]
[1755148543630,0.07127311,122760.0,122750.0,0.28367397]
[1755148543833,0.06921311,122760.0,122750.0,0.28363397]
[1755148544163,0.06921311,122760.0,122750.0,0.15697397]
[1755148544370,0.06921311,122760.0,122750.0,0.28677397]
[1755148544686,0.06921311,122760.0,122750.0,0.28363397]
[1755148544846,0.07840542,122760.0,122750.0,0.28363397]
[1755148545065,0.07840542,122760.0,122750.0,0.44839397]
[1755148545066,0.08141542,122760.0,122750.0,0.44839397]
[1755148545449,0.08141542,122760.0,122750.0,0.47671397]
[1755148545913,0.07419311,122760.0,122750.0,0.47883397]
[1755148546147,0.06921311,122760.0,122750.0,0.47883397]
[1755148548093,0.06921311,122760.0,122750.0,0.28673397]
[1755148548317,0.06921311,122760.0,122750.0,0.28355397]
[1755148549744,0.06921311,122760.0,122750.0,0.28351397]
[1755148554950,0.06921311,122760.0,122750.0,0.68163397]
[1755148555698,0.06921311,122760.0,122750.0,0.58015397]
[1755148556821,0.06921311,122760.0,122750.0,0.45047397]
[1755148556962,0.06921311,122760.0,122750.0,0.58011397]
[1755148558927,0.06921311,122760.0,122750.0,0.21724937]
[1755148559055,0.06921311,122760.0,122750.0,0.28649397]
[1755148559263,0.06921311,122760.0,122750.0,0.15697397]
[1755148559484,0.06921311,122760.0,122750.0,0.28649397]
[1755148560097,0.06121311,122760.0,122750.0,0.62645397]
[1755148560334,0.05821311,122760.0,122750.0,0.62545397]
[1755148560664,0.06621311,122760.0,122750.0,0.69094937]
[1755148562180,0.06621311,122760.0,122750.0,0.68780937]
[1755148562790,0.06621311,122760.0,122750.0,0.69094937]
[1755148564159,0.06621311,122760.0,122750.0,0.68780937]
[1755148564946,0.06621311,122760.0,122750.0,0.89076937]
[1755148565152,0.06621311,122760.0,122750.0,1.08592937]
[1755148565410,0.06621311,122760.0,122750.0,0.85496937]
[1755148565618,0.06621311,122760.0,122750.0,0.98420937]
[1755148566257,0.06621311,122760.0,122750.0,0.91963397]
[1755148566465,0.07120311,122760.0,122750.0,0.49171397]
[1755148566672,0.07120311,122760.0,122750.0,0.62087397]
[1755148566882,0.07120311,122760.0,122750.0,0.28087397]
[1755148567093,0.08500819,122760.0,122750.0,0.28087397]
[1755148567709,0.08500819,122760.0,122750.0,0.15171397]
[1755148567928,0.57077041,122760.0,122750.0,0.28087397]
[1755148568148,0.57077041,122760.0,122750.0,0.28083397]
[1755148568694,0.08500819,122760.0,122750.0,0.28083397]
[1755148568895,0.07120311,122760.0,122750.0,0.28079397]
[1755148575024,0.07120311,122760.0,122750.0,0.67891397]
[1755148576882,0.07120311,122760.0,122750.0,0.57743397]
[1755148579269,0.07120311,122760.0,122750.0,0.28079397]
[1755148580906,0.07120311,122760.0,122750.0,0.15171397]
[1755148581110,0.07120311,122760.0,122750.0,0.28051397]
[1755148582184,0.08076292,122760.0,122750.0,0.28051397]
[1755148585011,0.08076292,122760.0,122750.0,0.67867397]
[1755148585491,0.08076292,122760.0,122750.0,0.68069397]
[1755148585690,0.06621311,122760.0,122750.0,0.45349397]
[1755148585867,0.06621311,122760.0,122750.0,0.35201397]
[1755148586092,0.06621311,122760.0,122750.0,0.48057397]
[1755148588871,0.06621311,122760.0,122750.0,0.28537397]
[1755148590380,0.06621311,122760.0,122750.0,0.15681397]
[1755148590931,0.06621311,122760.0,122750.0,0.28525397]
[1755148591843,0.06621311,122760.0,122750.0,0.28521397]
[1755148594501,0.06621311,122760.0,122750.0,0.28509397]
[1755148594937,0.06621311,122760.0,122750.0,0.28201397]
[1755148595137,0.06621311,122760.0,122750.0,0.68013397]
[1755148595262,0.06822311,122760.0,122750.0,0.55185397]
[1755148595470,0.07120311,122760.0,122750.0,0.57861397]
[1755148595666,0.55696533,122760.0,122750.0,0.57861397]
[1755148595873,0.07120311,122760.0,122750.0,0.57861397]
[1755148596102,0.07120311,122760.0,122750.0,0.57659397]
[1755148597487,0.07120311,122760.0,122750.0,0.27995397]
[1755148597691,0.61934663,122760.0,122750.0,0.27995397]
[1755148597895,0.13358441,122760.0,122750.0,0.27995397]
[1755148598103,0.55696533,122760.0,122750.0,0.15171397]
[1755148598303,0.55696533,122760.0,122750.0,0.27995397]
[1755148598776,0.55696533,122760.0,122750.0,0.15171397]
[1755148599203,0.55696533,122760.0,122750.0,0.27991397]
[1755148599408,0.62166715,122760.0,122750.0,0.27987397]
[1755148599617,0.55684625,122760.0,122750.0,0.27987397]
[1755148599934,0.55684625,122760.0,122750.0,0.15171397]
[1755148600136,0.55684625,122760.0,122750.0,0.27987397]
[1755148600340,0.55684625,122760.0,122750.0,0.15171397]
[1755148600798,0.81884625,122760.0,122750.0,0.27987397]
[1755148601140,0.81884625,122760.0,122750.0,0.15171397]
[1755148601387,0.81884625,122760.0,122750.0,0.27987397]
[1755148601562,0.90133068,122760.0,122750.0,0.15171397]
[1755148601764,0.92572868,122760.0,122750.0,0.27987397]
[1755148602199,0.84324425,122760.0,122750.0,0.27987397]
[1755148603297,0.84324425,122760.0,122750.0,0.28002254]
[1755148603624,0.84324425,122760.0,122750.0,0.27902254]
[1755148603625,0.83724425,122760.0,122750.0,0.27902254]
[1755148604058,0.35148203,122760.0,122750.0,0.27902254]
[1755148604262,0.84424425,122760.0,122750.0,0.27902254]
[1755148604529,0.93072868,122760.0,122750.0,0.28002254]
[1755148604713,0.84824425,122760.0,122750.0,0.28002254]
[1755148605093,0.84824425,122760.0,122750.0,0.57670254]
[1755148605503,0.33309403,122760.0,122750.0,0.57845254]
[1755148605709,0.33309403,122760.0,122750.0,0.47697254]
[1755148606257,0.33309403,122760.0,122750.0,0.47701254]
[1755148606468,0.33309403,122760.0,122750.0,0.28181254]
[1755148606674,0.07109403,122760.0,122750.0,0.00488]
[1755148606882,0.07109403,122760.0,122720.0,0.33724806]
[1755148607096,0.07109403,122760.0,122730.0,0.152394]
[1755148607306,0.07109403,122760.0,122730.0,0.478314]
[1755148607508,0.07109403,122760.0,122730.0,0.37060675]
[1755148607709,0.07109403,122760.0,122730.0,0.350314]
[1755148608112,0.06134403,122760.0,122740.0,0.1284]
[1755148608408,0.06134403,122760.0,122750.0,0.12848]
[1755148608593,0.06334403,122760.0,122750.0,0.45435]
[1755148608972,0.06834403,122760.0,122750.0,0.45435]
[1755148609427,0.06330403,122760.0,122750.0,0.32587]
[1755148609555,0.06330403,122760.0,122750.0,0.45435]
[1755148610857,0.07030403,122760.0,122750.0,0.45535]
[1755148611065,0.07330403,122760.0,122750.0,0.45635]
[1755148611497,0.07030403,122760.0,122750.0,0.45535]
[1755148611709,0.06330403,122760.0,122750.0,0.45435]
[1755148611902,0.06330403,122760.0,122750.0,0.45535]
[1755148612155,0.07334403,122760.0,122750.0,0.45635]
[1755148612365,0.07009403,122760.0,122750.0,0.45619]
[1755148615052,0.07009403,122760.0,122750.0,0.85431]
[1755148617056,0.07009403,122760.0,122750.0,0.65135]
[1755148619533,0.07334403,122760.0,122750.0,0.32787]
[1755148619736,0.07334403,122760.0,122750.0,0.45607]
[1755148619940,0.07334403,122760.0,122750.0,0.45603]
[1755148620590,0.07009403,122760.0,122750.0,0.45603]
[1755148620763,0.07009403,122760.0,122750.0,0.31097376]
[1755148621421,0.07009403,122760.0,122750.0,0.34211114]
[1755148621623,0.07009403,122760.0,122750.0,0.31101376]
[1755148624272,0.07334403,122760.0,122750.0,0.31101376]
[1755148625160,0.07334403,122760.0,122750.0,0.70913376]
[1755148626482,0.07334403,122760.0,122750.0,0.47933376]
[1755148626670,0.07009403,122760.0,122750.0,0.60749376]
[1755148628450,0.07009403,122760.0,122750.0,0.31085376]
[1755148629396,0.012,122760.0,122750.0,0.31073376]
[1755148629580,0.012,122760.0,122750.0,0.36390456]
[1755148629787,0.012,122760.0,122750.0,0.38829256]
[1755148629965,0.012,122760.0,122750.0,0.24060634]
[1755148630168,0.012,122760.0,122750.0,0.70860634]
[1755148630919,0.009,122760.0,122750.0,0.70760634]
[1755148631154,0.01,122760.0,122750.0,0.70760634]
[1755148631344,0.001,122760.0,122750.0,0.70660634]
[1755148631981,0.007,122760.0,122750.0,0.70760634]
[1755148632879,0.007,122760.0,122750.0,0.57960634]
[1755148633093,0.007,122760.0,122750.0,0.70752634]
[1755148635024,0.007,122760.0,122750.0,1.00416634]
[1755148635463,0.007,122760.0,122750.0,0.77476634]
[1755148635659,0.007,122760.0,122750.0,0.70732634]
[1755148636735,0.007,122760.0,122750.0,0.57960634]
[1755148637084,0.007,122760.0,122750.0,0.70728634]
[1755148641397,0.007,122760.0,122750.0,0.57960634]
[1755148641836,0.00606989,122760.0,122750.0,0.68303919]
[1755148642037,0.00606989,122760.0,122750.0,0.81067919]
[1755148644215,0.00606989,122760.0,122750.0,0.78996959]
[1755148644861,0.00606989,122760.0,122750.0,0.78984959]
[1755148645046,0.00606989,122760.0,122750.0,0.95888959]
[1755148645230,0.00606989,122760.0,122750.0,1.08640959]
[1755148646272,0.00313,122780.0,122750.0,0.44884959]
[1755148646503,0.00313,122780.0,122760.0,0.21020325]
[1755148646701,0.00313,122780.0,122770.0,0.12748]
[1755148646901,0.00313,122780.0,122770.0,0.59847]
[1755148647140,0.00313,122780.0,122770.0,0.62646123]
[1755148647404,0.00313,122780.0,122770.0,0.65084423]
[1755148648001,0.00517,122780.0,122770.0,0.99084423]
[1755148648203,0.00517,122780.0,122770.0,1.0722671]
[1755148649700,0.01117,122780.0,122770.0,1.0722671]
[1755148650121,0.00517,122780.0,122770.0,1.0722671]
[1755148650341,0.01217,122780.0,122770.0,1.0731471]
[1755148652397,0.01217,122780.0,122770.0,1.0731071]
[1755148654273,0.01217,122780.0,122770.0,0.9457871]
[1755148654493,0.01217,122780.0,122770.0,1.0730671]
[1755148655041,0.01217,122780.0,122770.0,1.4710671]
[1755148655253,0.01217,122780.0,122770.0,1.2423471]
[1755148655457,0.01217,122780.0,122770.0,1.3695871]
[1755148655689,0.01013,122780.0,122770.0,1.3695871]
[1755148655906,0.01013,122780.0,122770.0,1.2681471]
[1755148657807,0.01013,122780.0,122770.0,1.0730271]
[1755148659446,0.007,122780.0,122770.0,1.0729471]
[1755148660444,0.01002,122780.0,122770.0,1.0729471]
[1755148661552,0.007,122780.0,122770.0,1.0729471]
[1755148661973,0.007,122780.0,122770.0,1.15567035]
[1755148663841,0.007,122780.0,122770.0,1.17637995]
[1755148664463,0.007,122780.0,122770.0,1.02851035]
[1755148664666,0.007,122780.0,122770.0,1.15567035]
[1755148665097,0.007,122780.0,122770.0,1.55363035]
[1755148665441,0.007,122780.0,122770.0,1.74374734]
[1755148666364,0.007,122780.0,122770.0,1.64230734]
[1755148667274,0.007,122780.0,122770.0,1.41370734]
[1755148667455,0.007,122780.0,122770.0,1.54086734]
[1755148667657,0.007,122780.0,122770.0,1.02851035]
[1755148667955,0.007,122780.0,122770.0,1.15567035]
[1755148668678,0.007,122780.0,122770.0,1.20445035]
[1755148670075,0.007,122780.0,122770.0,1.07729035]
[1755148670284,0.007,122780.0,122770.0,1.20445035]
[1755148671303,0.007,122780.0,122770.0,1.39456734]
[1755148674862,0.01207,122780.0,122770.0,0.9457871]
[1755148675137,0.01207,122780.0,122770.0,1.28804423]
[1755148675395,0.01207,122780.0,122770.0,0.94804423]
[1755148675622,0.01207,122780.0,122770.0,0.71944423]
[1755148675738,0.01207,122780.0,122770.0,0.84660423]
[1755148675956,0.01207,122780.0,122770.0,0.73396866]
[1755148676757,0.01207,122780.0,122770.0,0.94684866]
[1755148677028,0.01207,122780.0,122770.0,1.07396866]
[1755148677237,0.01207,122780.0,122770.0,0.94684866]
[1755148677438,0.01207,122780.0,122770.0,1.07396866]
[1755148677822,0.01207,122780.0,122770.0,0.94684866]
[1755148678034,0.01207,122780.0,122770.0,0.49998123]
[1755148678254,0.09479325,122780.0,122770.0,0.62710123]
[1755148678690,0.13091325,122780.0,122770.0,0.62710123]
[1755148679662,0.13091325,122780.0,122770.0,0.96710123]
[1755148679899,0.13091325,122780.0,122770.0,0.83998123]
[1755148680130,0.13091325,122780.0,122770.0,0.96710123]
[1755148680578,0.12391325,122780.0,122770.0,0.83898123]
[1755148680784,0.12391325,122780.0,122770.0,0.96610123]
[1755148680983,0.12991325,122780.0,122770.0,0.96714123]
[1755148681261,0.13191325,122780.0,122770.0,0.96714123]
[1755148681700,0.09579325,122780.0,122770.0,0.96714123]
[1755148681984,0.09579325,122780.0,122770.0,0.83555336]
[1755148685142,0.09579325,122780.0,122770.0,1.23351336]
[1755148687066,0.09579325,122780.0,122770.0,0.70839336]
[1755148687318,0.09579325,122780.0,122770.0,0.83555336]
[1755148689319,0.09579325,122780.0,122770.0,0.70839336]
[1755148689541,0.09579325,122780.0,122770.0,0.83555336]
[1755148690350,0.09579325,122780.0,122770.0,0.70839336]
[1755148690554,0.09579325,122780.0,122770.0,0.83555336]
[1755148691116,0.09579325,122780.0,122770.0,0.70839336]
[1755148691313,0.09579325,122780.0,122770.0,0.83555336]
[1755148691588,0.09579325,122780.0,122770.0,0.83551336]
[1755148694627,0.09579325,122780.0,122770.0,0.70839336]
[1755148694829,0.09579325,122780.0,122770.0,0.83551336]
[1755148695086,0.09579325,122780.0,122770.0,0.80983336]
[1755148695295,0.09579325,122780.0,122770.0,1.00495336]
[1755148695473,0.09579325,122780.0,122770.0,1.03063336]
[1755148697285,0.09579325,122780.0,122770.0,0.70839336]
[1755148697731,0.09579325,122780.0,122770.0,0.83551336]
[1755148703223,0.008,122780.0,122770.0,0.91799779]
[1755148703432,0.008,122780.0,122770.0,0.79087779]
[1755148703765,0.008,122780.0,122770.0,0.91799779]
[1755148703929,0.01124,122780.0,122770.0,0.91799779]
[1755148704149,0.01124,122780.0,122770.0,0.83551336]
[1755148704383,0.008,122780.0,122770.0,0.83551336]
[1755148704908,0.01124,122780.0,122770.0,0.83551336]
[1755148705148,0.01334,122780.0,122770.0,1.23351336]
[1755148707219,0.01334,122780.0,122770.0,1.05272361]
[1755148707653,0.01334,122780.0,122770.0,0.72272361]
[1755148707804,0.01334,122780.0,122770.0,0.84984361]
[1755148708011,0.01124,122780.0,122770.0,0.80520804]
[1755148708214,0.01124,122780.0,122770.0,0.93232804]
[1755148709521,0.008,122780.0,122770.0,0.93232804]
[1755148710066,0.008,122780.0,122770.0,0.73720804]
[1755148710262,0.01124,122780.0,122770.0,0.73720804]
[1755148710466,0.01124,122780.0,122770.0,0.65472361]
[1755148710904,0.008,122780.0,122770.0,0.65472361]
[1755148711353,0.01124,122780.0,122770.0,0.65472361]
[1755148711760,0.01334,122780.0,122770.0,0.65472361]
[1755148715083,0.01334,122780.0,122770.0,1.05272361]
[1755148715277,0.01334,122780.0,122770.0,0.82416361]
[1755148715482,0.01334,122780.0,122770.0,0.95124361]
[1755148716443,0.01334,122780.0,122770.0,1.03372804]
[1755148717594,0.01334,122780.0,122770.0,0.95124361]
[1755148717796,0.01334,122780.0,122770.0,0.65468361]
[1755148719506,0.01334,122780.0,122770.0,0.52760361]
[1755148719630,0.01334,122780.0,122770.0,0.65468361]
[1755148725081,0.01334,122780.0,122770.0,1.05268361]
[1755148725496,0.09606325,122780.0,122770.0,0.95120361]
[1755148725701,0.09606325,122780.0,122770.0,0.72272361]
[1755148725915,0.10566958,122780.0,122770.0,0.31464361]
[1755148726647,0.10566958,122780.0,122770.0,0.18760361]
[1755148726849,0.10566958,122780.0,122770.0,0.31464361]
[1755148727253,0.10566958,122780.0,122770.0,0.18760361]
[1755148727504,0.10566958,122780.0,122770.0,0.31464361]
[1755148727881,0.13006158,122780.0,122770.0,0.31464361]
[1755148729873,0.13006158,122780.0,122770.0,0.18760361]
[1755148730077,0.13006158,122780.0,122770.0,0.31464361]
[1755148731902,0.13006158,122780.0,122770.0,0.18760361]
[1755148732103,0.13006158,122780.0,122770.0,0.31460361]
[1755148733463,0.13006158,122780.0,122770.0,0.31811337]
[1755148733639,0.12045525,122780.0,122770.0,0.31811337]
[1755148735011,0.12045525,122780.0,122770.0,0.58911337]
[1755148735241,0.12045525,122780.0,122770.0,0.71611337]
[1755148735441,0.12045525,122780.0,122770.0,0.71979179]
[1755148735641,0.12045525,122780.0,122770.0,0.49135179]
[1755148735847,0.09606325,122780.0,122770.0,0.61835179]
[1755148736222,0.09606325,122780.0,122770.0,0.38991179]
[1755148736406,0.09606325,122780.0,122770.0,0.51691179]
[1755148737213,0.09606325,122780.0,122770.0,0.19479179]
[1755148737547,0.09606325,122780.0,122770.0,0.32179179]
[1755148740482,0.09606325,122780.0,122770.0,0.19479179]
[1755148740642,0.09606325,122780.0,122770.0,0.31460361]
[1755148741570,0.12045325,122780.0,122770.0,0.31460361]
[1755148742717,0.09606325,122780.0,122770.0,0.31460361]
[1755148742952,0.12045425,122780.0,122770.0,0.31460361]
[1755148744627,0.12045425,122780.0,122770.0,0.31456361]
[1755148745074,0.12045425,122780.0,122770.0,0.71951565]
[1755148748105,0.12045425,122780.0,122770.0,0.71264361]
[1755148748685,0.12045425,122780.0,122770.0,0.31456361]
[1755148749548,0.11511425,122780.0,122770.0,0.31456361]
[1755148749733,0.09072325,122780.0,122770.0,0.32118577]
[1755148749959,0.09072325,122780.0,122770.0,0.19422577]
[1755148750165,0.09072325,122780.0,122770.0,0.32118577]
[1755148753733,0.09072325,122780.0,122770.0,0.32118577]
[1755148753929,0.008,122780.0,122770.0,0.32118577]
[1755148754130,0.008,122780.0,122770.0,0.32114577]
[1755148754343,0.008,122780.0,122770.0,0.66114577]
[1755148755015,0.008,122780.0,122770.0,0.87549313]
[1755148755400,0.008,122780.0,122770.0,0.95797756]
[1755148756611,0.008,122780.0,122770.0,0.62809756]
[1755148757047,0.008,122780.0,122770.0,0.55989756]
[1755148758233,0.008,122780.0,122770.0,0.47741313]
[1755148760224,0.008,122780.0,122770.0,0.12692]
[1755148761169,0.008,122780.0,122770.0,0.12688]
[1755148761384,0.01125,122780.0,122770.0,0.12688]
[1755148761957,0.01125,122780.0,122750.0,0.024387]
[1755148762172,0.01125,122780.0,122770.0,0.02061756]
[1755148762377,0.01125,122780.0,122760.0,0.12688]
[1755148763403,0.01125,122780.0,122770.0,0.34]
[1755148763404,0.00925,122780.0,122770.0,0.34]
[1755148763753,0.01025,122780.0,122770.0,0.36040879]
[1755148764172,0.00325,122780.0,122770.0,0.36040879]
[1755148764583,0.00525,122780.0,122770.0,0.36040879]
[1755148764732,0.00925,122780.0,122770.0,0.36040879]
[1755148764941,0.00725,122780.0,122770.0,0.56328879]
[1755148765157,0.00325,122780.0,122770.0,0.75840879]
[1755148765549,0.01225,122780.0,122770.0,0.84089322]
[1755148766240,0.009,122780.0,122770.0,0.79539615]
[1755148766453,0.009,122780.0,122770.0,0.69395615]
[1755148767319,0.007,122780.0,122770.0,0.69395615]
[1755148767546,4.00325,122800.0,122770.0,0.69395615]
[1755148767759,0.004,122780.0,122770.0,0.56108281]
[1755148768010,4.08597325,122800.0,122780.0,0.00758736]
[1755148768449,4.08597325,122800.0,122790.0,0.12684]
[1755148768884,4.08997325,122800.0,122790.0,0.46684]
[1755148769099,4.08997325,122800.0,122790.0,0.84003274]
[1755148769319,4.08597325,122800.0,122790.0,0.84003274]
[1755148769558,4.08812325,122800.0,122790.0,0.84003274]
[1755148770634,4.09112325,122800.0,122790.0,0.84003274]
[1755148770795,4.09312325,122800.0,122790.0,0.84003274]
[1755148771022,4.09012325,122800.0,122790.0,0.84003274]
[1755148771224,4.09412325,122800.0,122790.0,0.84103274]
[1755148775185,4.09412325,122800.0,122790.0,1.23899274]
[1755148776767,4.09412325,122800.0,122790.0,0.90927274]
[1755148777038,4.09412325,122800.0,122790.0,1.03607274]
[1755148778877,4.09412325,122800.0,122790.0,0.84099274]
[1755148779274,4.09412325,122800.0,122790.0,0.79355]
[1755148779921,4.09412325,122800.0,122790.0,0.79351]
[1755148784012,4.57988547,122800.0,122790.0,0.3235]
[1755148784216,4.64180447,122800.0,122790.0,0.3235]
[1755148784398,4.7242889,122800.0,122790.0,0.45022]
[1755148784604,4.23852668,122800.0,122790.0,0.45022]
[1755148784829,4.23852668,122800.0,122790.0,0.3235]
[1755148784985,4.23252668,122800.0,122790.0,0.74574]
[1755148785190,4.23252668,122800.0,122790.0,0.61902]
[1755148785442,4.23652668,122800.0,122790.0,0.74674]
[1755148785989,4.24352668,122800.0,122790.0,0.51958]
[1755148786200,4.24352668,122800.0,122790.0,0.3245]
[1755148786417,4.24352668,122800.0,122790.0,0.45122]
[1755148786625,4.16104225,122800.0,122790.0,0.45122]
[1755148787979,4.12351225,122800.0,122790.0,0.45122]
[1755148789692,4.60927447,122800.0,122790.0,0.45122]
[1755148789901,4.16104225,122800.0,122790.0,0.45122]
[1755148790133,4.64680447,122800.0,122790.0,0.45122]
[1755148790340,4.7292889,122800.0,122790.0,0.45122]
[1755148791092,4.7292889,122800.0,122790.0,0.3245]
[1755148791355,4.7292889,122800.0,122790.0,0.45122]
[1755148792603,4.7292889,122800.0,122790.0,0.3245]
[1755148792826,4.7292889,122800.0,122790.0,0.45122]
[1755148793070,4.74969107,122800.0,122790.0,0.45122]
[1755148793290,4.7292889,122800.0,122790.0,0.45122]
[1755148794613,4.7292889,122800.0,122790.0,0.45118]
[1755148795063,4.7292889,122800.0,122790.0,0.74774]
[1755148796051,4.74969756,122800.0,122790.0,0.74774]
[1755148797113,4.7292889,122800.0,122790.0,0.74774]
[1755148800884,4.71259979,122800.0,122790.0,0.74774]
[1755148802426,4.22683757,122800.0,122790.0,0.74774]
[1755148802654,4.71259979,122800.0,122790.0,0.6463]
[1755148803455,4.6917589,122800.0,122790.0,0.6463]
[1755148803674,4.20599668,122800.0,122790.0,0.45118]
[1755148803899,4.12351225,122800.0,122790.0,0.45118]
[1755148805032,4.12351225,122800.0,122790.0,0.55266]
[1755148805258,4.12351225,122800.0,122790.0,0.74782]
[1755148805471,4.60927447,122800.0,122790.0,0.74782]
[1755148805711,4.20599668,122800.0,122790.0,0.62114]
[1755148805933,4.6917589,122800.0,122790.0,0.74778]
[1755148806119,4.6917589,122800.0,122790.0,0.62114]
[1755148806330,4.6917589,122800.0,122790.0,0.74778]
[1755148806765,4.20599668,122800.0,122790.0,0.6463]
[1755148807380,4.12351225,122800.0,122790.0,0.6463]
[1755148810735,4.12351225,122800.0,122790.0,0.45114]
[1755148811208,4.12351225,122800.0,122790.0,0.3245]
[1755148811442,4.12351225,122800.0,122790.0,0.4511]
[1755148815081,4.12351225,122800.0,122790.0,0.74774]
[1755148815778,4.20599668,122800.0,122790.0,0.54774]
[1755148816332,4.20599668,122800.0,122790.0,0.42114]
[1755148816518,4.20599668,122800.0,122790.0,0.31966]
[1755148816676,4.20599668,122800.0,122790.0,0.44622]
[1755148817264,4.20599668,122800.0,122760.0,0.00162]
[1755148817476,4.20599668,122800.0,122730.0,0.02439]
[1755148817477,0.08272325,122790.0,122770.0,0.00162]
[1755148817691,0.08272325,122790.0,122780.0,0.00214]
[1755148817910,0.10711325,122790.0,122780.0,0.00376]
[1755148818332,0.08272325,122790.0,122780.0,0.00214]
[1755148818589,0.08774325,122790.0,122780.0,0.12656]
[1755148819247,0.09174325,122790.0,122780.0,0.12656]
[1755148819665,0.08774325,122790.0,122780.0,0.12656]
[1755148819877,0.08774325,122790.0,122780.0,0.12756]
[1755148820142,0.09274325,122790.0,122780.0,0.12756]
[1755148820341,0.09574325,122790.0,122780.0,0.12856]
[1755148820772,0.20261668,122790.0,122780.0,0.12856]
[1755148820979,0.20261668,122790.0,122780.0,0.1307]
[1755148821552,0.20053668,122790.0,122780.0,0.1307]
[1755148821754,0.19759668,122790.0,122780.0,0.1307]
[1755148822581,0.11511225,122790.0,122780.0,0.1307]
[1755148823314,0.11511225,122790.0,122740.0,0.024389]
[1755148823544,0.11805225,122790.0,122760.0,0.03347342]
[1755148823752,0.11805225,122790.0,122740.0,0.024389]
[1755148823963,0.11805225,122790.0,122740.0,0.0768279]
[1755148824139,0.11505225,122790.0,122740.0,0.0768279]
[1755148824593,0.11505225,122790.0,122750.0,0.12652]
[1755148824800,0.11211225,122790.0,122750.0,0.12652]
[1755148825006,0.00294,122780.0,122760.0,0.10148]
[1755148825221,0.08566325,122780.0,122770.0,0.42312]
[1755148826616,0.08866325,122780.0,122770.0,0.42412]
[1755148827022,0.09366325,122780.0,122770.0,0.3226]
[1755148827223,0.09072325,122780.0,122770.0,0.001]
[1755148827431,0.09072325,122780.0,122770.0,0.12748]
[1755148827617,0.09072325,122780.0,122770.0,0.46748]
[1755148828723,0.09072325,122780.0,122770.0,0.341]
[1755148828934,0.09072325,122780.0,122770.0,0.46748]
[1755148829530,0.09072325,122780.0,122770.0,0.341]
[1755148829703,0.09072325,122780.0,122770.0,0.46748]
[1755148831460,0.008,122780.0,122770.0,0.39099706]
[1755148831604,0.008,122780.0,122770.0,0.51990526]
[1755148832034,0.008,122780.0,122770.0,0.51747706]
[1755148832672,0.008,122780.0,122770.0,0.46748]
[1755148835145,0.008,122780.0,122770.0,0.86548]
[1755148835559,0.008,122780.0,122770.0,0.76404]
[1755148837681,0.008,122780.0,122770.0,0.6626]
[1755148837894,0.008,122780.0,122770.0,0.46748]
[1755148838114,0.008,122780.0,122770.0,0.51991566]
[1755148838318,0.008,122780.0,122770.0,0.39343566]
[1755148838536,0.008,122780.0,122770.0,0.4674]
[1755148838940,0.09590325,122780.0,122770.0,0.341]
[1755148839140,0.09590325,122780.0,122770.0,0.4674]
[1755148841505,0.09590325,122780.0,122770.0,0.341]
[1755148841802,0.10549358,122780.0,122770.0,0.4674]
[1755148842451,0.09590325,122780.0,122770.0,0.4674]
[1755148842660,0.09590325,122780.0,122770.0,0.341]
[1755148842788,0.09590325,122780.0,122770.0,0.4674]
[1755148845014,0.09590325,122780.0,122770.0,0.8654]
[1755148845455,0.09590325,122780.0,122770.0,0.76396]
[1755148846498,0.09590325,122780.0,122770.0,0.53612]
[1755148846709,0.09384325,122780.0,122770.0,0.66248]
[1755148847129,0.09072325,122780.0,122770.0,0.66248]
[1755148847761,0.09384325,122780.0,122770.0,0.66248]
[1755148847964,0.09072325,122780.0,122770.0,0.66248]
[1755148848380,0.09384325,122780.0,122770.0,0.66248]
[1755148848609,0.09590325,122780.0,122770.0,0.66248]
[1755148850399,0.09384325,122780.0,122770.0,0.66248]
[1755148850603,0.09384325,122780.0,122770.0,0.341]
[1755148851013,0.09384325,122780.0,122770.0,0.46736]
[1755148852921,0.09384325,122780.0,122770.0,0.341]
[1755148853127,0.09590325,122780.0,122770.0,0.46732]
[1755148853520,0.09590325,122780.0,122770.0,0.341]
[1755148853770,0.09590325,122780.0,122770.0,0.46732]
[1755148854995,0.09590325,122780.0,122770.0,0.86532]
[1755148855662,0.09590325,122780.0,122770.0,0.76388]
[1755148857767,0.09590325,122780.0,122770.0,0.66244]
[1755148857992,0.09384325,122780.0,122770.0,0.341]
[1755148858210,0.09072325,122780.0,122770.0,0.341]
[1755148858418,0.09072325,122780.0,122770.0,0.46732]
[1755148858779,0.09072325,122780.0,122770.0,0.341]
[1755148858976,0.09072325,122780.0,122770.0,0.46732]
[1755148859588,0.09072325,122780.0,122770.0,0.51730106]
[1755148859789,0.09072325,122780.0,122770.0,0.46732]
[1755148862148,0.008,122780.0,122770.0,0.46958064]
[1755148862555,0.008,122780.0,122770.0,0.49396664]
[1755148862966,0.008,122780.0,122770.0,0.491666]
[1755148863170,0.008,122780.0,122770.0,0.56309335]
[1755148865022,0.008,122780.0,122770.0,0.96109335]
[1755148866255,0.008,122780.0,122770.0,0.85965335]
[1755148866466,0.008,122780.0,122770.0,0.75821335]
[1755148867746,0.008,122780.0,122770.0,0.75817335]
[1755148868366,0.008,122780.0,122770.0,0.43681335]
[1755148868542,0.008,122780.0,122770.0,0.56305335]
[1755148869404,0.008,122780.0,122770.0,0.56639783]
[1755148869864,0.008,122780.0,122770.0,0.75651482]
[1755148871077,0.008,122780.0,122770.0,0.56639783]
[1755148872731,0.008,122780.0,122770.0,0.56301335]
[1755148873944,0.008,122780.0,122770.0,0.77660335]
[1755148875085,0.008,122780.0,122770.0,1.07316335]
[1755148876639,0.008,122780.0,122770.0,0.97172335]
[1755148878540,0.008,122780.0,122770.0,0.63072335]
[1755148878744,0.008,122780.0,122770.0,0.43560335]
[1755148880512,0.008,122780.0,122770.0,0.77560335]
[1755148883813,0.008,122780.0,122770.0,0.64940335]
[1755148883932,0.008,122780.0,122770.0,0.77902087]
[1755148884784,0.005,122780.0,122770.0,0.77902087]